{"text_format":"2","workbook":"xlsx","n_sheets":3,"sheets":["B2) ResearcherIDs","B3 B4 B5) HR_FTEs","Confidential"],"not_rendered":{"charts":0,"images":0,"macros":0,"external_links":0,"defined_names":9,"comments":0,"pivot_tables":0},"unopened":[],"bounds":{"document_bytes":16777216,"sheet_cells":100000,"run_cost":"one","rows_first":2000,"rows_last":500,"rows_between":2000,"halvings":0,"cell_chars":16384,"cell_head_chars":4096},"cells_cut":0,"cells_raw":0,"read":"whole","date_system":"1900"}

{"sheet":"B2) ResearcherIDs","index":0,"n_rows":502,"n_cols":13,"rows_kept":502,"cut":false,"hidden":false,"merged":[[1,1,1,8],[1,10,1,11],[3,12,4,17]]}
[]
[null,"B2 Teammember and their ResearcherIDs",{"$nulls":8},"Project Information"]
[null,"Employee No","First Name","Second Name","Teammember: Position ","ORCID","Scopus Author Identifier","Web of Science ResearcherID","Other (Please specify)","Comments","Project Acronym","Partner number "]
[null,"Example:","Mickey","Mouse","main contact person for this project","1234-5678-9101-1121",12345678901,"X-1234-1234",null,null,"MyProject",1,"← In this example both, Mickey Mouse and Donald Duck are team members of different partner organisations (partner 1 and partner 2)"]
[null,"Example:","Donald","Duck","Team member","0123-4567-8910-1112",1234567890,"X-0123-0123",null,null,"MyProject",2]
[null,1]
[null,2]
[null,3]
[null,4]
[null,5]
[null,6]
[null,7]
[null,8]
[null,9]
[null,10]
[null,11]
[null,12]
[null,13]
[null,14]
[null,15]
[null,16]
[null,17]
[null,18]
[null,19]
[null,20]
[null,21]
[null,22]
[null,23]
[null,24]
[null,25]
[null,26]
[null,27]
[null,28]
[null,29]
[null,30]
[null,31]
[null,32]
[null,33]
[null,34]
[null,35]
[null,36]
[null,37]
[null,38]
[null,39]
[null,40]
[null,41]
[null,42]
[null,43]
[null,44]
[null,45]
[null,46]
[null,47]
[null,48]
[null,49]
[null,50]
[null,51]
[null,52]
[null,53]
[null,54]
[null,55]
[null,56]
[null,57]
[null,58]
[null,59]
[null,60]
[null,61]
[null,62]
[null,63]
[null,64]
[null,65]
[null,66]
[null,67]
[null,68]
[null,69]
[null,70]
[null,71]
[null,72]
[null,73]
[null,74]
[null,75]
[null,76]
[null,77]
[null,78]
[null,79]
[null,80]
[null,81]
[null,82]
[null,83]
[null,84]
[null,85]
[null,86]
[null,87]
[null,88]
[null,89]
[null,90]
[null,91]
[null,92]
[null,93]
[null,94]
[null,95]
[null,96]
[null,97]
[null,98]
[null,99]
[null,100]
[null,101]
[null,102]
[null,103]
[null,104]
[null,105]
[null,106]
[null,107]
[null,108]
[null,109]
[null,110]
[null,111]
[null,112]
[null,113]
[null,114]
[null,115]
[null,116]
[null,117]
[null,118]
[null,119]
[null,120]
[null,121]
[null,122]
[null,123]
[null,124]
[null,125]
[null,126]
[null,127]
[null,128]
[null,129]
[null,130]
[null,131]
[null,132]
[null,133]
[null,134]
[null,135]
[null,136]
[null,137]
[null,138]
[null,139]
[null,140]
[null,141]
[null,142]
[null,143]
[null,144]
[null,145]
[null,146]
[null,147]
[null,148]
[null,149]
[null,150]
[null,151]
[null,152]
[null,153]
[null,154]
[null,155]
[null,156]
[null,157]
[null,158]
[null,159]
[null,160]
[null,161]
[null,162]
[null,163]
[null,164]
[null,165]
[null,166]
[null,167]
[null,168]
[null,169]
[null,170]
[null,171]
[null,172]
[null,173]
[null,174]
[null,175]
[null,176]
[null,177]
[null,178]
[null,179]
[null,180]
[null,181]
[null,182]
[null,183]
[null,184]
[null,185]
[null,186]
[null,187]
[null,188]
[null,189]
[null,190]
[null,191]
[null,192]
[null,193]
[null,194]
[null,195]
[null,196]
[null,197]
[null,198]
[null,199]
[null,200]
[null,201]
[null,202]
[null,203]
[null,204]
[null,205]
[null,206]
[null,207]
[null,208]
[null,209]
[null,210]
[null,211]
[null,212]
[null,213]
[null,214]
[null,215]
[null,216]
[null,217]
[null,218]
[null,219]
[null,220]
[null,221]
[null,222]
[null,223]
[null,224]
[null,225]
[null,226]
[null,227]
[null,228]
[null,229]
[null,230]
[null,231]
[null,232]
[null,233]
[null,234]
[null,235]
[null,236]
[null,237]
[null,238]
[null,239]
[null,240]
[null,241]
[null,242]
[null,243]
[null,244]
[null,245]
[null,246]
[null,247]
[null,248]
[null,249]
[null,250]
[null,251]
[null,252]
[null,253]
[null,254]
[null,255]
[null,256]
[null,257]
[null,258]
[null,259]
[null,260]
[null,261]
[null,262]
[null,263]
[null,264]
[null,265]
[null,266]
[null,267]
[null,268]
[null,269]
[null,270]
[null,271]
[null,272]
[null,273]
[null,274]
[null,275]
[null,276]
[null,277]
[null,278]
[null,279]
[null,280]
[null,281]
[null,282]
[null,283]
[null,284]
[null,285]
[null,286]
[null,287]
[null,288]
[null,289]
[null,290]
[null,291]
[null,292]
[null,293]
[null,294]
[null,295]
[null,296]
[null,297]
[null,298]
[null,299]
[null,300]
[null,301]
[null,302]
[null,303]
[null,304]
[null,305]
[null,306]
[null,307]
[null,308]
[null,309]
[null,310]
[null,311]
[null,312]
[null,313]
[null,314]
[null,315]
[null,316]
[null,317]
[null,318]
[null,319]
[null,320]
[null,321]
[null,322]
[null,323]
[null,324]
[null,325]
[null,326]
[null,327]
[null,328]
[null,329]
[null,330]
[null,331]
[null,332]
[null,333]
[null,334]
[null,335]
[null,336]
[null,337]
[null,338]
[null,339]
[null,340]
[null,341]
[null,342]
[null,343]
[null,344]
[null,345]
[null,346]
[null,347]
[null,348]
[null,349]
[null,350]
[null,351]
[null,352]
[null,353]
[null,354]
[null,355]
[null,356]
[null,357]
[null,358]
[null,359]
[null,360]
[null,361]
[null,362]
[null,363]
[null,364]
[null,365]
[null,366]
[null,367]
[null,368]
[null,369]
[null,370]
[null,371]
[null,372]
[null,373]
[null,374]
[null,375]
[null,376]
[null,377]
[null,378]
[null,379]
[null,380]
[null,381]
[null,382]
[null,383]
[null,384]
[null,385]
[null,386]
[null,387]
[null,388]
[null,389]
[null,390]
[null,391]
[null,392]
[null,393]
[null,394]
[null,395]
[null,396]
[null,397]
[null,398]
[null,399]
[null,400]
[null,401]
[null,402]
[null,403]
[null,404]
[null,405]
[null,406]
[null,407]
[null,408]
[null,409]
[null,410]
[null,411]
[null,412]
[null,413]
[null,414]
[null,415]
[null,416]
[null,417]
[null,418]
[null,419]
[null,420]
[null,421]
[null,422]
[null,423]
[null,424]
[null,425]
[null,426]
[null,427]
[null,428]
[null,429]
[null,430]
[null,431]
[null,432]
[null,433]
[null,434]
[null,435]
[null,436]
[null,437]
[null,438]
[null,439]
[null,440]
[null,441]
[null,442]
[null,443]
[null,444]
[null,445]
[null,446]
[null,447]
[null,448]
[null,449]
[null,450]
[null,451]
[null,452]
[null,453]
[null,454]
[null,455]
[null,456]
[null,457]
[null,458]
[null,459]
[null,460]
[null,461]
[null,462]
[null,463]
[null,464]
[null,465]
[null,466]
[null,467]
[null,468]
[null,469]
[null,470]
[null,471]
[null,472]
[null,473]
[null,474]
[null,475]
[null,476]
[null,477]
[null,478]
[null,479]
[null,480]
[null,481]
[null,482]
[null,483]
[null,484]
[null,485]
[null,486]
[null,487]
[null,488]
[null,489]
[null,490]
[null,491]
[null,492]
[null,493]
[null,494]
[null,495]
[null,496]
[null,497]

{"sheet":"B3 B4 B5) HR_FTEs","index":1,"n_rows":111,"n_cols":27,"rows_kept":111,"cut":false,"hidden":false,"merged":[[1,1,1,8],[1,15,1,16],[1,21,1,25],[1,26,1,28],[2,26,2,28],[1,19,1,20],[1,9,1,13]]}
[]
[null,"B3. Team mebers working for the project:",{"$nulls":7},"B4. Professional future: ",{"$nulls":5},"Project Information",null,null,null,"Project Information",null,"B5. HR and FTEs*: ",{"$nulls":4},"*1 FTE means 1 person is working full-time for the entire project period;"]
[null,"Employee No","Initials","Gender","Position in the project","Position in the project=Other: Explanation ","Existing / hired","Person months paid by grant","Person months (in kind/ other contribution)","Professional future of employee","Professional future of employee = other:\nExplanation","Sector","Location","Country","Comments","Project Acronym","Partner",null,"total# (ignore)","Acronym","Partner","Start date ","End date","Project length [months]","FTEs by grant ","FTEs in kind"]
[null,"Example",{"$f":"LEFT('B2) ResearcherIDs'!C4,2)&LEFT('B2) ResearcherIDs'!D4,2)","v":"MiMo"},"Man","Leadership position",null,"Existing staff",0,24,"Leadership position",null,"same organisation: permanent position ","in same country*","Ireland",null,{"$f":"ResID[[#This Row],[Project Acronym]]","v":"MyProject"},{"$f":"ResID[[#This Row],[Partner number ]]","v":1},"<-Example->",null,{"$f":"$P$4","v":"MyProject"},1,"2022-04-01","2024-03-31",{"$f":"IF(OR(ISBLANK(V4), ISBLANK(W4)), \"ERROR: Date missing\", DATEDIF(V4,W4,\"M\")+1)","v":24},{"$f":"SUMIF(HR[Partner], U4, HR[Person months paid by grant])/X4","v":0},{"$f":"SUMIF(HR[Partner], U4,HR[Person months (in kind/ other contribution)])/X4","v":1}]
[null,"Example",{"$f":"LEFT('B2) ResearcherIDs'!C5,2)&LEFT('B2) ResearcherIDs'!D5,2)","v":"DoDu"},"Transgender","Recognised Researcher (R2)",null,"Newly hired ",36,12,"Established Researcher (R3)",null,"same organisation: temporary position","abroad, European*","Portugal",null,{"$f":"ResID[[#This Row],[Project Acronym]]","v":"MyProject"},{"$f":"ResID[[#This Row],[Partner number ]]","v":2},"<-Example->",null,{"$f":"$P$4","v":"MyProject"},2,"2021-08-01","2025-07-15",48,{"$f":"SUMIF(HR[Partner], U5, HR[Person months paid by grant])/X5","v":0.75},{"$f":"SUMIF(HR[Partner], U5,HR[Person months (in kind/ other contribution)])/X5","v":0.25}]
[null,1,{"$nulls":13},{"$f":"ResID[[#This Row],[Project Acronym]]","v":0},{"$f":"ResID[[#This Row],[Partner number ]]","v":0},null,null,{"$f":"$P$6","v":0},1,null,null,"ERROR: Date missing",{"$f":"SUMIF(HR[Partner], U6, HR[Person months paid by grant])/X6","v":{"$error":"#VALUE!"}},{"$f":"SUMIF(HR[Partner], U6,HR[Person months (in kind/ other contribution)])/X6","v":{"$error":"#VALUE!"}}]
[null,2,{"$f":"LEFT('B2) ResearcherIDs'!C7,2)&LEFT('B2) ResearcherIDs'!D7,2)","v":""},{"$nulls":12},{"$f":"ResID[[#This Row],[Project Acronym]]","v":0},{"$f":"ResID[[#This Row],[Partner number ]]","v":0},null,null,0,2,null,null,"ERROR: Date missing",{"$f":"SUMIF(HR[Partner], U7, HR[Person months paid by grant])/X7","v":{"$error":"#VALUE!"}},{"$f":"SUMIF(HR[Partner], U7,HR[Person months (in kind/ other contribution)])/X7","v":{"$error":"#VALUE!"}}]
[null,3,{"$f":"LEFT('B2) ResearcherIDs'!C8,2)&LEFT('B2) ResearcherIDs'!D8,2)","v":""},{"$nulls":12},{"$f":"ResID[[#This Row],[Project Acronym]]","v":0},{"$f":"ResID[[#This Row],[Partner number ]]","v":0},null,null,0,3,null,null,"ERROR: Date missing",{"$f":"SUMIF(HR[Partner], U8, HR[Person months paid by grant])/X8","v":{"$error":"#VALUE!"}},{"$f":"SUMIF(HR[Partner], U8,HR[Person months (in kind/ other contribution)])/X8","v":{"$error":"#VALUE!"}}]
[null,4,{"$f":"LEFT('B2) ResearcherIDs'!C9,2)&LEFT('B2) ResearcherIDs'!D9,2)","v":""},{"$nulls":12},{"$f":"ResID[[#This Row],[Project Acronym]]","v":0},{"$f":"ResID[[#This Row],[Partner number ]]","v":0},null,null,0,4,null,null,"ERROR: Date missing",{"$f":"SUMIF(HR[Partner], U9, HR[Person months paid by grant])/X9","v":{"$error":"#VALUE!"}},{"$f":"SUMIF(HR[Partner], U9,HR[Person months (in kind/ other contribution)])/X9","v":{"$error":"#VALUE!"}}]
[null,5,{"$f":"LEFT('B2) ResearcherIDs'!C10,2)&LEFT('B2) ResearcherIDs'!D10,2)","v":""},{"$nulls":12},{"$f":"ResID[[#This Row],[Project Acronym]]","v":0},{"$f":"ResID[[#This Row],[Partner number ]]","v":0},null,null,0,5,null,null,"ERROR: Date missing",{"$f":"SUMIF(HR[Partner], U10, HR[Person months paid by grant])/X10","v":{"$error":"#VALUE!"}},{"$f":"SUMIF(HR[Partner], U10,HR[Person months (in kind/ other contribution)])/X10","v":{"$error":"#VALUE!"}}]
[null,6,{"$f":"LEFT('B2) ResearcherIDs'!C11,2)&LEFT('B2) ResearcherIDs'!D11,2)","v":""},{"$nulls":12},{"$f":"ResID[[#This Row],[Project Acronym]]","v":0},{"$f":"ResID[[#This Row],[Partner number ]]","v":0},null,null,0,6,null,null,"ERROR: Date missing",{"$f":"SUMIF(HR[Partner], U11, HR[Person months paid by grant])/X11","v":{"$error":"#VALUE!"}},{"$f":"SUMIF(HR[Partner], U11,HR[Person months (in kind/ other contribution)])/X11","v":{"$error":"#VALUE!"}}]
[null,7,{"$f":"LEFT('B2) ResearcherIDs'!C12,2)&LEFT('B2) ResearcherIDs'!D12,2)","v":""},{"$nulls":12},{"$f":"ResID[[#This Row],[Project Acronym]]","v":0},{"$f":"ResID[[#This Row],[Partner number ]]","v":0},null,null,0,7,null,null,"ERROR: Date missing",{"$f":"SUMIF(HR[Partner], U12, HR[Person months paid by grant])/X12","v":{"$error":"#VALUE!"}},{"$f":"SUMIF(HR[Partner], U12,HR[Person months (in kind/ other contribution)])/X12","v":{"$error":"#VALUE!"}}]
[null,8,{"$f":"LEFT('B2) ResearcherIDs'!C13,2)&LEFT('B2) ResearcherIDs'!D13,2)","v":""},{"$nulls":12},{"$f":"ResID[[#This Row],[Project Acronym]]","v":0},{"$f":"ResID[[#This Row],[Partner number ]]","v":0},null,null,0,8,null,null,"ERROR: Date missing",{"$f":"SUMIF(HR[Partner], U13, HR[Person months paid by grant])/X13","v":{"$error":"#VALUE!"}},{"$f":"SUMIF(HR[Partner], U13,HR[Person months (in kind/ other contribution)])/X13","v":{"$error":"#VALUE!"}}]
[null,9,{"$f":"LEFT('B2) ResearcherIDs'!C14,2)&LEFT('B2) ResearcherIDs'!D14,2)","v":""},{"$nulls":12},{"$f":"ResID[[#This Row],[Project Acronym]]","v":0},{"$f":"ResID[[#This Row],[Partner number ]]","v":0},null,null,0,9,null,null,"ERROR: Date missing",{"$f":"SUMIF(HR[Partner], U14, HR[Person months paid by grant])/X14","v":{"$error":"#VALUE!"}},{"$f":"SUMIF(HR[Partner], U14,HR[Person months (in kind/ other contribution)])/X14","v":{"$error":"#VALUE!"}}]
[null,10,{"$f":"LEFT('B2) ResearcherIDs'!C15,2)&LEFT('B2) ResearcherIDs'!D15,2)","v":""},{"$nulls":12},{"$f":"ResID[[#This Row],[Project Acronym]]","v":0},{"$f":"ResID[[#This Row],[Partner number ]]","v":0},null,null,0,10,null,null,"ERROR: Date missing",{"$f":"SUMIF(HR[Partner], U15, HR[Person months paid by grant])/X15","v":{"$error":"#VALUE!"}},{"$f":"SUMIF(HR[Partner], U15,HR[Person months (in kind/ other contribution)])/X15","v":{"$error":"#VALUE!"}}]
[null,11,{"$f":"LEFT('B2) ResearcherIDs'!C16,2)&LEFT('B2) ResearcherIDs'!D16,2)","v":""},{"$nulls":12},{"$f":"ResID[[#This Row],[Project Acronym]]","v":0},{"$f":"ResID[[#This Row],[Partner number ]]","v":0},null,null,0,11,null,null,"ERROR: Date missing",{"$f":"SUMIF(HR[Partner], U16, HR[Person months paid by grant])/X16","v":{"$error":"#VALUE!"}},{"$f":"SUMIF(HR[Partner], U16,HR[Person months (in kind/ other contribution)])/X16","v":{"$error":"#VALUE!"}}]
[null,12,{"$f":"LEFT('B2) ResearcherIDs'!C17,2)&LEFT('B2) ResearcherIDs'!D17,2)","v":""},{"$nulls":12},{"$f":"ResID[[#This Row],[Project Acronym]]","v":0},{"$f":"ResID[[#This Row],[Partner number ]]","v":0},null,null,0,12,null,null,"ERROR: Date missing",{"$f":"SUMIF(HR[Partner], U17, HR[Person months paid by grant])/X17","v":{"$error":"#VALUE!"}},{"$f":"SUMIF(HR[Partner], U17,HR[Person months (in kind/ other contribution)])/X17","v":{"$error":"#VALUE!"}}]
[null,13,{"$f":"LEFT('B2) ResearcherIDs'!C18,2)&LEFT('B2) ResearcherIDs'!D18,2)","v":""},{"$nulls":12},{"$f":"ResID[[#This Row],[Project Acronym]]","v":0},{"$f":"ResID[[#This Row],[Partner number ]]","v":0},null,null,0,13,null,null,"ERROR: Date missing",{"$f":"SUMIF(HR[Partner], U18, HR[Person months paid by grant])/X18","v":{"$error":"#VALUE!"}},{"$f":"SUMIF(HR[Partner], U18,HR[Person months (in kind/ other contribution)])/X18","v":{"$error":"#VALUE!"}}]
[null,14,{"$f":"LEFT('B2) ResearcherIDs'!C19,2)&LEFT('B2) ResearcherIDs'!D19,2)","v":""},{"$nulls":12},{"$f":"ResID[[#This Row],[Project Acronym]]","v":0},{"$f":"ResID[[#This Row],[Partner number ]]","v":0},null,null,0,14,null,null,"ERROR: Date missing",{"$f":"SUMIF(HR[Partner], U19, HR[Person months paid by grant])/X19","v":{"$error":"#VALUE!"}},{"$f":"SUMIF(HR[Partner], U19,HR[Person months (in kind/ other contribution)])/X19","v":{"$error":"#VALUE!"}}]
[null,15,{"$f":"LEFT('B2) ResearcherIDs'!C20,2)&LEFT('B2) ResearcherIDs'!D20,2)","v":""},{"$nulls":12},{"$f":"ResID[[#This Row],[Project Acronym]]","v":0},{"$f":"ResID[[#This Row],[Partner number ]]","v":0},null,null,0,15,null,null,"ERROR: Date missing",{"$f":"SUMIF(HR[Partner], U20, HR[Person months paid by grant])/X20","v":{"$error":"#VALUE!"}},{"$f":"SUMIF(HR[Partner], U20,HR[Person months (in kind/ other contribution)])/X20","v":{"$error":"#VALUE!"}}]
[null,16,{"$f":"LEFT('B2) ResearcherIDs'!C21,2)&LEFT('B2) ResearcherIDs'!D21,2)","v":""},{"$nulls":12},{"$f":"ResID[[#This Row],[Project Acronym]]","v":0},{"$f":"ResID[[#This Row],[Partner number ]]","v":0},null,null,0,16,null,null,"ERROR: Date missing",{"$f":"SUMIF(HR[Partner], U21, HR[Person months paid by grant])/X21","v":{"$error":"#VALUE!"}},{"$f":"SUMIF(HR[Partner], U21,HR[Person months (in kind/ other contribution)])/X21","v":{"$error":"#VALUE!"}}]
[null,17,{"$f":"LEFT('B2) ResearcherIDs'!C22,2)&LEFT('B2) ResearcherIDs'!D22,2)","v":""},{"$nulls":12},{"$f":"ResID[[#This Row],[Project Acronym]]","v":0},{"$f":"ResID[[#This Row],[Partner number ]]","v":0},null,null,0,17,null,null,"ERROR: Date missing",{"$f":"SUMIF(HR[Partner], U22, HR[Person months paid by grant])/X22","v":{"$error":"#VALUE!"}},{"$f":"SUMIF(HR[Partner], U22,HR[Person months (in kind/ other contribution)])/X22","v":{"$error":"#VALUE!"}}]
[null,18,{"$f":"LEFT('B2) ResearcherIDs'!C23,2)&LEFT('B2) ResearcherIDs'!D23,2)","v":""},{"$nulls":12},{"$f":"ResID[[#This Row],[Project Acronym]]","v":0},{"$f":"ResID[[#This Row],[Partner number ]]","v":0},null,null,0,18,null,null,"ERROR: Date missing",{"$f":"SUMIF(HR[Partner], U23, HR[Person months paid by grant])/X23","v":{"$error":"#VALUE!"}},{"$f":"SUMIF(HR[Partner], U23,HR[Person months (in kind/ other contribution)])/X23","v":{"$error":"#VALUE!"}}]
[null,19,{"$f":"LEFT('B2) ResearcherIDs'!C24,2)&LEFT('B2) ResearcherIDs'!D24,2)","v":""},{"$nulls":12},{"$f":"ResID[[#This Row],[Project Acronym]]","v":0},{"$f":"ResID[[#This Row],[Partner number ]]","v":0},null,null,0,19,null,null,"ERROR: Date missing",{"$f":"SUMIF(HR[Partner], U24, HR[Person months paid by grant])/X24","v":{"$error":"#VALUE!"}},{"$f":"SUMIF(HR[Partner], U24,HR[Person months (in kind/ other contribution)])/X24","v":{"$error":"#VALUE!"}}]
[null,20,{"$f":"LEFT('B2) ResearcherIDs'!C25,2)&LEFT('B2) ResearcherIDs'!D25,2)","v":""},{"$nulls":12},{"$f":"ResID[[#This Row],[Project Acronym]]","v":0},{"$f":"ResID[[#This Row],[Partner number ]]","v":0},null,null,0,20,null,null,"ERROR: Date missing",{"$f":"SUMIF(HR[Partner], U25, HR[Person months paid by grant])/X25","v":{"$error":"#VALUE!"}},{"$f":"SUMIF(HR[Partner], U25,HR[Person months (in kind/ other contribution)])/X25","v":{"$error":"#VALUE!"}}]
[null,21,{"$f":"LEFT('B2) ResearcherIDs'!C26,2)&LEFT('B2) ResearcherIDs'!D26,2)","v":""},{"$nulls":12},{"$f":"ResID[[#This Row],[Project Acronym]]","v":0},{"$f":"ResID[[#This Row],[Partner number ]]","v":0},null,null,0,21,null,null,"ERROR: Date missing",{"$f":"SUMIF(HR[Partner], U26, HR[Person months paid by grant])/X26","v":{"$error":"#VALUE!"}},{"$f":"SUMIF(HR[Partner], U26,HR[Person months (in kind/ other contribution)])/X26","v":{"$error":"#VALUE!"}}]
[null,22,{"$f":"LEFT('B2) ResearcherIDs'!C27,2)&LEFT('B2) ResearcherIDs'!D27,2)","v":""},{"$nulls":12},{"$f":"ResID[[#This Row],[Project Acronym]]","v":0},{"$f":"ResID[[#This Row],[Partner number ]]","v":0},null,null,0,22,null,null,"ERROR: Date missing",{"$f":"SUMIF(HR[Partner], U27, HR[Person months paid by grant])/X27","v":{"$error":"#VALUE!"}},{"$f":"SUMIF(HR[Partner], U27,HR[Person months (in kind/ other contribution)])/X27","v":{"$error":"#VALUE!"}}]
[null,23,{"$f":"LEFT('B2) ResearcherIDs'!C28,2)&LEFT('B2) ResearcherIDs'!D28,2)","v":""},{"$nulls":12},{"$f":"ResID[[#This Row],[Project Acronym]]","v":0},{"$f":"ResID[[#This Row],[Partner number ]]","v":0},null,null,0,23,null,null,"ERROR: Date missing",{"$f":"SUMIF(HR[Partner], U28, HR[Person months paid by grant])/X28","v":{"$error":"#VALUE!"}},{"$f":"SUMIF(HR[Partner], U28,HR[Person months (in kind/ other contribution)])/X28","v":{"$error":"#VALUE!"}}]
[null,24,{"$f":"LEFT('B2) ResearcherIDs'!C29,2)&LEFT('B2) ResearcherIDs'!D29,2)","v":""},{"$nulls":12},{"$f":"ResID[[#This Row],[Project Acronym]]","v":0},{"$f":"ResID[[#This Row],[Partner number ]]","v":0},null,null,0,24,null,null,"ERROR: Date missing",{"$f":"SUMIF(HR[Partner], U29, HR[Person months paid by grant])/X29","v":{"$error":"#VALUE!"}},{"$f":"SUMIF(HR[Partner], U29,HR[Person months (in kind/ other contribution)])/X29","v":{"$error":"#VALUE!"}}]
[null,25,{"$f":"LEFT('B2) ResearcherIDs'!C30,2)&LEFT('B2) ResearcherIDs'!D30,2)","v":""},{"$nulls":12},{"$f":"ResID[[#This Row],[Project Acronym]]","v":0},{"$f":"ResID[[#This Row],[Partner number ]]","v":0},null,null,0,25,null,null,"ERROR: Date missing",{"$f":"SUMIF(HR[Partner], U30, HR[Person months paid by grant])/X30","v":{"$error":"#VALUE!"}},{"$f":"SUMIF(HR[Partner], U30,HR[Person months (in kind/ other contribution)])/X30","v":{"$error":"#VALUE!"}}]
[null,26,{"$f":"LEFT('B2) ResearcherIDs'!C31,2)&LEFT('B2) ResearcherIDs'!D31,2)","v":""},{"$nulls":12},{"$f":"ResID[[#This Row],[Project Acronym]]","v":0},{"$f":"ResID[[#This Row],[Partner number ]]","v":0},null,null,0,26,null,null,"ERROR: Date missing",{"$f":"SUMIF(HR[Partner], U31, HR[Person months paid by grant])/X31","v":{"$error":"#VALUE!"}},{"$f":"SUMIF(HR[Partner], U31,HR[Person months (in kind/ other contribution)])/X31","v":{"$error":"#VALUE!"}}]
[null,27,{"$f":"LEFT('B2) ResearcherIDs'!C32,2)&LEFT('B2) ResearcherIDs'!D32,2)","v":""},{"$nulls":12},{"$f":"ResID[[#This Row],[Project Acronym]]","v":0},{"$f":"ResID[[#This Row],[Partner number ]]","v":0},null,null,0,27,null,null,"ERROR: Date missing",{"$f":"SUMIF(HR[Partner], U32, HR[Person months paid by grant])/X32","v":{"$error":"#VALUE!"}},{"$f":"SUMIF(HR[Partner], U32,HR[Person months (in kind/ other contribution)])/X32","v":{"$error":"#VALUE!"}}]
[null,28,{"$f":"LEFT('B2) ResearcherIDs'!C33,2)&LEFT('B2) ResearcherIDs'!D33,2)","v":""},{"$nulls":12},{"$f":"ResID[[#This Row],[Project Acronym]]","v":0},{"$f":"ResID[[#This Row],[Partner number ]]","v":0},null,null,0,28,null,null,"ERROR: Date missing",{"$f":"SUMIF(HR[Partner], U33, HR[Person months paid by grant])/X33","v":{"$error":"#VALUE!"}},{"$f":"SUMIF(HR[Partner], U33,HR[Person months (in kind/ other contribution)])/X33","v":{"$error":"#VALUE!"}}]
[null,29,{"$f":"LEFT('B2) ResearcherIDs'!C34,2)&LEFT('B2) ResearcherIDs'!D34,2)","v":""},{"$nulls":12},{"$f":"ResID[[#This Row],[Project Acronym]]","v":0},{"$f":"ResID[[#This Row],[Partner number ]]","v":0},null,null,0,29,null,null,"ERROR: Date missing",{"$f":"SUMIF(HR[Partner], U34, HR[Person months paid by grant])/X34","v":{"$error":"#VALUE!"}},{"$f":"SUMIF(HR[Partner], U34,HR[Person months (in kind/ other contribution)])/X34","v":{"$error":"#VALUE!"}}]
[null,30,{"$f":"LEFT('B2) ResearcherIDs'!C35,2)&LEFT('B2) ResearcherIDs'!D35,2)","v":""},{"$nulls":12},{"$f":"ResID[[#This Row],[Project Acronym]]","v":0},{"$f":"ResID[[#This Row],[Partner number ]]","v":0},null,null,0,30,null,null,"ERROR: Date missing",{"$f":"SUMIF(HR[Partner], U35, HR[Person months paid by grant])/X35","v":{"$error":"#VALUE!"}},{"$f":"SUMIF(HR[Partner], U35,HR[Person months (in kind/ other contribution)])/X35","v":{"$error":"#VALUE!"}}]
[null,31,{"$f":"LEFT('B2) ResearcherIDs'!C36,2)&LEFT('B2) ResearcherIDs'!D36,2)","v":""},{"$nulls":12},{"$f":"ResID[[#This Row],[Project Acronym]]","v":0},{"$f":"ResID[[#This Row],[Partner number ]]","v":0},null,null,{"$f":"$P$6","v":0},31,null,null,"ERROR: Date missing",{"$f":"SUMIF(HR[Partner], U36, HR[Person months paid by grant])/X36","v":{"$error":"#VALUE!"}},{"$f":"SUMIF(HR[Partner], U36,HR[Person months (in kind/ other contribution)])/X36","v":{"$error":"#VALUE!"}}]
[null,32,{"$f":"LEFT('B2) ResearcherIDs'!C37,2)&LEFT('B2) ResearcherIDs'!D37,2)","v":""},{"$nulls":12},{"$f":"ResID[[#This Row],[Project Acronym]]","v":0},{"$f":"ResID[[#This Row],[Partner number ]]","v":0},null,null,0,32,null,null,"ERROR: Date missing",{"$f":"SUMIF(HR[Partner], U37, HR[Person months paid by grant])/X37","v":{"$error":"#VALUE!"}},{"$f":"SUMIF(HR[Partner], U37,HR[Person months (in kind/ other contribution)])/X37","v":{"$error":"#VALUE!"}}]
[null,33,{"$f":"LEFT('B2) ResearcherIDs'!C38,2)&LEFT('B2) ResearcherIDs'!D38,2)","v":""},{"$nulls":12},{"$f":"ResID[[#This Row],[Project Acronym]]","v":0},{"$f":"ResID[[#This Row],[Partner number ]]","v":0},null,null,0,33,null,null,"ERROR: Date missing",{"$f":"SUMIF(HR[Partner], U38, HR[Person months paid by grant])/X38","v":{"$error":"#VALUE!"}},{"$f":"SUMIF(HR[Partner], U38,HR[Person months (in kind/ other contribution)])/X38","v":{"$error":"#VALUE!"}}]
[null,34,{"$f":"LEFT('B2) ResearcherIDs'!C39,2)&LEFT('B2) ResearcherIDs'!D39,2)","v":""},{"$nulls":12},{"$f":"ResID[[#This Row],[Project Acronym]]","v":0},{"$f":"ResID[[#This Row],[Partner number ]]","v":0},null,null,0,34,null,null,"ERROR: Date missing",{"$f":"SUMIF(HR[Partner], U39, HR[Person months paid by grant])/X39","v":{"$error":"#VALUE!"}},{"$f":"SUMIF(HR[Partner], U39,HR[Person months (in kind/ other contribution)])/X39","v":{"$error":"#VALUE!"}}]
[null,35,{"$f":"LEFT('B2) ResearcherIDs'!C40,2)&LEFT('B2) ResearcherIDs'!D40,2)","v":""},{"$nulls":12},{"$f":"ResID[[#This Row],[Project Acronym]]","v":0},{"$f":"ResID[[#This Row],[Partner number ]]","v":0},null,null,0,35,null,null,"ERROR: Date missing",{"$f":"SUMIF(HR[Partner], U40, HR[Person months paid by grant])/X40","v":{"$error":"#VALUE!"}},{"$f":"SUMIF(HR[Partner], U40,HR[Person months (in kind/ other contribution)])/X40","v":{"$error":"#VALUE!"}}]
[null,36,{"$f":"LEFT('B2) ResearcherIDs'!C41,2)&LEFT('B2) ResearcherIDs'!D41,2)","v":""},{"$nulls":12},{"$f":"ResID[[#This Row],[Project Acronym]]","v":0},{"$f":"ResID[[#This Row],[Partner number ]]","v":0},null,null,0,36,null,null,"ERROR: Date missing",{"$f":"SUMIF(HR[Partner], U41, HR[Person months paid by grant])/X41","v":{"$error":"#VALUE!"}},{"$f":"SUMIF(HR[Partner], U41,HR[Person months (in kind/ other contribution)])/X41","v":{"$error":"#VALUE!"}}]
[null,37,{"$f":"LEFT('B2) ResearcherIDs'!C42,2)&LEFT('B2) ResearcherIDs'!D42,2)","v":""},{"$nulls":12},{"$f":"ResID[[#This Row],[Project Acronym]]","v":0},{"$f":"ResID[[#This Row],[Partner number ]]","v":0},null,null,0,37,null,null,"ERROR: Date missing",{"$f":"SUMIF(HR[Partner], U42, HR[Person months paid by grant])/X42","v":{"$error":"#VALUE!"}},{"$f":"SUMIF(HR[Partner], U42,HR[Person months (in kind/ other contribution)])/X42","v":{"$error":"#VALUE!"}}]
[null,38,{"$f":"LEFT('B2) ResearcherIDs'!C43,2)&LEFT('B2) ResearcherIDs'!D43,2)","v":""},{"$nulls":12},{"$f":"ResID[[#This Row],[Project Acronym]]","v":0},{"$f":"ResID[[#This Row],[Partner number ]]","v":0},null,null,0,38,null,null,"ERROR: Date missing",{"$f":"SUMIF(HR[Partner], U43, HR[Person months paid by grant])/X43","v":{"$error":"#VALUE!"}},{"$f":"SUMIF(HR[Partner], U43,HR[Person months (in kind/ other contribution)])/X43","v":{"$error":"#VALUE!"}}]
[null,39,{"$f":"LEFT('B2) ResearcherIDs'!C44,2)&LEFT('B2) ResearcherIDs'!D44,2)","v":""},{"$nulls":12},{"$f":"ResID[[#This Row],[Project Acronym]]","v":0},{"$f":"ResID[[#This Row],[Partner number ]]","v":0},null,null,0,39,null,null,"ERROR: Date missing",{"$f":"SUMIF(HR[Partner], U44, HR[Person months paid by grant])/X44","v":{"$error":"#VALUE!"}},{"$f":"SUMIF(HR[Partner], U44,HR[Person months (in kind/ other contribution)])/X44","v":{"$error":"#VALUE!"}}]
[null,40,{"$f":"LEFT('B2) ResearcherIDs'!C45,2)&LEFT('B2) ResearcherIDs'!D45,2)","v":""},{"$nulls":12},{"$f":"ResID[[#This Row],[Project Acronym]]","v":0},{"$f":"ResID[[#This Row],[Partner number ]]","v":0},null,null,0,40,null,null,"ERROR: Date missing",{"$f":"SUMIF(HR[Partner], U45, HR[Person months paid by grant])/X45","v":{"$error":"#VALUE!"}},{"$f":"SUMIF(HR[Partner], U45,HR[Person months (in kind/ other contribution)])/X45","v":{"$error":"#VALUE!"}}]
[null,41,{"$f":"LEFT('B2) ResearcherIDs'!C46,2)&LEFT('B2) ResearcherIDs'!D46,2)","v":""},{"$nulls":12},{"$f":"ResID[[#This Row],[Project Acronym]]","v":0},{"$f":"ResID[[#This Row],[Partner number ]]","v":0},null,null,0,41,null,null,"ERROR: Date missing",{"$f":"SUMIF(HR[Partner], U46, HR[Person months paid by grant])/X46","v":{"$error":"#VALUE!"}},{"$f":"SUMIF(HR[Partner], U46,HR[Person months (in kind/ other contribution)])/X46","v":{"$error":"#VALUE!"}}]
[null,42,{"$f":"LEFT('B2) ResearcherIDs'!C47,2)&LEFT('B2) ResearcherIDs'!D47,2)","v":""},{"$nulls":12},{"$f":"ResID[[#This Row],[Project Acronym]]","v":0},{"$f":"ResID[[#This Row],[Partner number ]]","v":0},null,null,0,42,null,null,"ERROR: Date missing",{"$f":"SUMIF(HR[Partner], U47, HR[Person months paid by grant])/X47","v":{"$error":"#VALUE!"}},{"$f":"SUMIF(HR[Partner], U47,HR[Person months (in kind/ other contribution)])/X47","v":{"$error":"#VALUE!"}}]
[null,43,{"$f":"LEFT('B2) ResearcherIDs'!C48,2)&LEFT('B2) ResearcherIDs'!D48,2)","v":""},{"$nulls":12},{"$f":"ResID[[#This Row],[Project Acronym]]","v":0},{"$f":"ResID[[#This Row],[Partner number ]]","v":0},null,null,0,43,null,null,"ERROR: Date missing",{"$f":"SUMIF(HR[Partner], U48, HR[Person months paid by grant])/X48","v":{"$error":"#VALUE!"}},{"$f":"SUMIF(HR[Partner], U48,HR[Person months (in kind/ other contribution)])/X48","v":{"$error":"#VALUE!"}}]
[null,44,{"$f":"LEFT('B2) ResearcherIDs'!C49,2)&LEFT('B2) ResearcherIDs'!D49,2)","v":""},{"$nulls":12},{"$f":"ResID[[#This Row],[Project Acronym]]","v":0},{"$f":"ResID[[#This Row],[Partner number ]]","v":0},null,null,0,44,null,null,"ERROR: Date missing",{"$f":"SUMIF(HR[Partner], U49, HR[Person months paid by grant])/X49","v":{"$error":"#VALUE!"}},{"$f":"SUMIF(HR[Partner], U49,HR[Person months (in kind/ other contribution)])/X49","v":{"$error":"#VALUE!"}}]
[null,45,{"$f":"LEFT('B2) ResearcherIDs'!C50,2)&LEFT('B2) ResearcherIDs'!D50,2)","v":""},{"$nulls":12},{"$f":"ResID[[#This Row],[Project Acronym]]","v":0},{"$f":"ResID[[#This Row],[Partner number ]]","v":0},null,null,0,45,null,null,"ERROR: Date missing",{"$f":"SUMIF(HR[Partner], U50, HR[Person months paid by grant])/X50","v":{"$error":"#VALUE!"}},{"$f":"SUMIF(HR[Partner], U50,HR[Person months (in kind/ other contribution)])/X50","v":{"$error":"#VALUE!"}}]
[null,46,{"$f":"LEFT('B2) ResearcherIDs'!C51,2)&LEFT('B2) ResearcherIDs'!D51,2)","v":""},{"$nulls":12},{"$f":"ResID[[#This Row],[Project Acronym]]","v":0},{"$f":"ResID[[#This Row],[Partner number ]]","v":0},null,null,0,46,null,null,"ERROR: Date missing",{"$f":"SUMIF(HR[Partner], U51, HR[Person months paid by grant])/X51","v":{"$error":"#VALUE!"}},{"$f":"SUMIF(HR[Partner], U51,HR[Person months (in kind/ other contribution)])/X51","v":{"$error":"#VALUE!"}}]
[null,47,{"$f":"LEFT('B2) ResearcherIDs'!C52,2)&LEFT('B2) ResearcherIDs'!D52,2)","v":""},{"$nulls":12},{"$f":"ResID[[#This Row],[Project Acronym]]","v":0},{"$f":"ResID[[#This Row],[Partner number ]]","v":0},null,null,0,47,null,null,"ERROR: Date missing",{"$f":"SUMIF(HR[Partner], U52, HR[Person months paid by grant])/X52","v":{"$error":"#VALUE!"}},{"$f":"SUMIF(HR[Partner], U52,HR[Person months (in kind/ other contribution)])/X52","v":{"$error":"#VALUE!"}}]
[null,null,{"$f":"LEFT('B2) ResearcherIDs'!C53,2)&LEFT('B2) ResearcherIDs'!D53,2)","v":""},{"$nulls":12},{"$f":"ResID[[#This Row],[Project Acronym]]","v":0},{"$f":"ResID[[#This Row],[Partner number ]]","v":0},null,null,0,48,null,null,"ERROR: Date missing",{"$f":"SUMIF(HR[Partner], U53, HR[Person months paid by grant])/X53","v":{"$error":"#VALUE!"}},{"$f":"SUMIF(HR[Partner], U53,HR[Person months (in kind/ other contribution)])/X53","v":{"$error":"#VALUE!"}}]
[null,null,{"$f":"LEFT('B2) ResearcherIDs'!C54,2)&LEFT('B2) ResearcherIDs'!D54,2)","v":""},{"$nulls":12},{"$f":"ResID[[#This Row],[Project Acronym]]","v":0},{"$f":"ResID[[#This Row],[Partner number ]]","v":0},null,null,0,49,null,null,"ERROR: Date missing",{"$f":"SUMIF(HR[Partner], U54, HR[Person months paid by grant])/X54","v":{"$error":"#VALUE!"}},{"$f":"SUMIF(HR[Partner], U54,HR[Person months (in kind/ other contribution)])/X54","v":{"$error":"#VALUE!"}}]
[null,null,{"$f":"LEFT('B2) ResearcherIDs'!C55,2)&LEFT('B2) ResearcherIDs'!D55,2)","v":""},{"$nulls":12},{"$f":"ResID[[#This Row],[Project Acronym]]","v":0},{"$f":"ResID[[#This Row],[Partner number ]]","v":0},null,null,0,50,null,null,"ERROR: Date missing",{"$f":"SUMIF(HR[Partner], U55, HR[Person months paid by grant])/X55","v":{"$error":"#VALUE!"}},{"$f":"SUMIF(HR[Partner], U55,HR[Person months (in kind/ other contribution)])/X55","v":{"$error":"#VALUE!"}}]
[null,null,{"$f":"LEFT('B2) ResearcherIDs'!C56,2)&LEFT('B2) ResearcherIDs'!D56,2)","v":""},{"$nulls":12},{"$f":"ResID[[#This Row],[Project Acronym]]","v":0},{"$f":"ResID[[#This Row],[Partner number ]]","v":0},null,null,0,51,null,null,"ERROR: Date missing",{"$f":"SUMIF(HR[Partner], U56, HR[Person months paid by grant])/X56","v":{"$error":"#VALUE!"}},{"$f":"SUMIF(HR[Partner], U56,HR[Person months (in kind/ other contribution)])/X56","v":{"$error":"#VALUE!"}}]
[null,null,{"$f":"LEFT('B2) ResearcherIDs'!C57,2)&LEFT('B2) ResearcherIDs'!D57,2)","v":""},{"$nulls":12},{"$f":"ResID[[#This Row],[Project Acronym]]","v":0},{"$f":"ResID[[#This Row],[Partner number ]]","v":0},null,null,0,52,null,null,"ERROR: Date missing",{"$f":"SUMIF(HR[Partner], U57, HR[Person months paid by grant])/X57","v":{"$error":"#VALUE!"}},{"$f":"SUMIF(HR[Partner], U57,HR[Person months (in kind/ other contribution)])/X57","v":{"$error":"#VALUE!"}}]
[null,null,{"$f":"LEFT('B2) ResearcherIDs'!C58,2)&LEFT('B2) ResearcherIDs'!D58,2)","v":""},{"$nulls":12},{"$f":"ResID[[#This Row],[Project Acronym]]","v":0},{"$f":"ResID[[#This Row],[Partner number ]]","v":0},null,null,0,53,null,null,"ERROR: Date missing",{"$f":"SUMIF(HR[Partner], U58, HR[Person months paid by grant])/X58","v":{"$error":"#VALUE!"}},{"$f":"SUMIF(HR[Partner], U58,HR[Person months (in kind/ other contribution)])/X58","v":{"$error":"#VALUE!"}}]
[null,null,{"$f":"LEFT('B2) ResearcherIDs'!C59,2)&LEFT('B2) ResearcherIDs'!D59,2)","v":""},{"$nulls":12},{"$f":"ResID[[#This Row],[Project Acronym]]","v":0},{"$f":"ResID[[#This Row],[Partner number ]]","v":0},null,null,0,54,null,null,"ERROR: Date missing",{"$f":"SUMIF(HR[Partner], U59, HR[Person months paid by grant])/X59","v":{"$error":"#VALUE!"}},{"$f":"SUMIF(HR[Partner], U59,HR[Person months (in kind/ other contribution)])/X59","v":{"$error":"#VALUE!"}}]
[null,null,{"$f":"LEFT('B2) ResearcherIDs'!C60,2)&LEFT('B2) ResearcherIDs'!D60,2)","v":""},{"$nulls":12},{"$f":"ResID[[#This Row],[Project Acronym]]","v":0},{"$f":"ResID[[#This Row],[Partner number ]]","v":0},null,null,0,55,null,null,"ERROR: Date missing",{"$f":"SUMIF(HR[Partner], U60, HR[Person months paid by grant])/X60","v":{"$error":"#VALUE!"}},{"$f":"SUMIF(HR[Partner], U60,HR[Person months (in kind/ other contribution)])/X60","v":{"$error":"#VALUE!"}}]
[null,null,{"$f":"LEFT('B2) ResearcherIDs'!C61,2)&LEFT('B2) ResearcherIDs'!D61,2)","v":""},{"$nulls":12},{"$f":"ResID[[#This Row],[Project Acronym]]","v":0},{"$f":"ResID[[#This Row],[Partner number ]]","v":0},null,null,0,56,null,null,"ERROR: Date missing",{"$f":"SUMIF(HR[Partner], U61, HR[Person months paid by grant])/X61","v":{"$error":"#VALUE!"}},{"$f":"SUMIF(HR[Partner], U61,HR[Person months (in kind/ other contribution)])/X61","v":{"$error":"#VALUE!"}}]
[null,null,{"$f":"LEFT('B2) ResearcherIDs'!C62,2)&LEFT('B2) ResearcherIDs'!D62,2)","v":""},{"$nulls":12},{"$f":"ResID[[#This Row],[Project Acronym]]","v":0},{"$f":"ResID[[#This Row],[Partner number ]]","v":0},null,null,0,57,null,null,"ERROR: Date missing",{"$f":"SUMIF(HR[Partner], U62, HR[Person months paid by grant])/X62","v":{"$error":"#VALUE!"}},{"$f":"SUMIF(HR[Partner], U62,HR[Person months (in kind/ other contribution)])/X62","v":{"$error":"#VALUE!"}}]
[null,null,{"$f":"LEFT('B2) ResearcherIDs'!C63,2)&LEFT('B2) ResearcherIDs'!D63,2)","v":""},{"$nulls":12},{"$f":"ResID[[#This Row],[Project Acronym]]","v":0},{"$f":"ResID[[#This Row],[Partner number ]]","v":0},null,null,0,58,null,null,"ERROR: Date missing",{"$f":"SUMIF(HR[Partner], U63, HR[Person months paid by grant])/X63","v":{"$error":"#VALUE!"}},{"$f":"SUMIF(HR[Partner], U63,HR[Person months (in kind/ other contribution)])/X63","v":{"$error":"#VALUE!"}}]
[null,null,{"$f":"LEFT('B2) ResearcherIDs'!C64,2)&LEFT('B2) ResearcherIDs'!D64,2)","v":""},{"$nulls":12},{"$f":"ResID[[#This Row],[Project Acronym]]","v":0},{"$f":"ResID[[#This Row],[Partner number ]]","v":0},null,null,0,59,null,null,"ERROR: Date missing",{"$f":"SUMIF(HR[Partner], U64, HR[Person months paid by grant])/X64","v":{"$error":"#VALUE!"}},{"$f":"SUMIF(HR[Partner], U64,HR[Person months (in kind/ other contribution)])/X64","v":{"$error":"#VALUE!"}}]
[null,null,{"$f":"LEFT('B2) ResearcherIDs'!C65,2)&LEFT('B2) ResearcherIDs'!D65,2)","v":""},{"$nulls":12},{"$f":"ResID[[#This Row],[Project Acronym]]","v":0},{"$f":"ResID[[#This Row],[Partner number ]]","v":0},null,null,0,60,null,null,"ERROR: Date missing",{"$f":"SUMIF(HR[Partner], U65, HR[Person months paid by grant])/X65","v":{"$error":"#VALUE!"}},{"$f":"SUMIF(HR[Partner], U65,HR[Person months (in kind/ other contribution)])/X65","v":{"$error":"#VALUE!"}}]
[null,null,{"$f":"LEFT('B2) ResearcherIDs'!C66,2)&LEFT('B2) ResearcherIDs'!D66,2)","v":""},{"$nulls":12},{"$f":"ResID[[#This Row],[Project Acronym]]","v":0},{"$f":"ResID[[#This Row],[Partner number ]]","v":0},null,null,0,61,null,null,"ERROR: Date missing",{"$f":"SUMIF(HR[Partner], U66, HR[Person months paid by grant])/X66","v":{"$error":"#VALUE!"}},{"$f":"SUMIF(HR[Partner], U66,HR[Person months (in kind/ other contribution)])/X66","v":{"$error":"#VALUE!"}}]
[null,null,{"$f":"LEFT('B2) ResearcherIDs'!C67,2)&LEFT('B2) ResearcherIDs'!D67,2)","v":""},{"$nulls":12},{"$f":"ResID[[#This Row],[Project Acronym]]","v":0},{"$f":"ResID[[#This Row],[Partner number ]]","v":0},null,null,0,62,null,null,"ERROR: Date missing",{"$f":"SUMIF(HR[Partner], U67, HR[Person months paid by grant])/X67","v":{"$error":"#VALUE!"}},{"$f":"SUMIF(HR[Partner], U67,HR[Person months (in kind/ other contribution)])/X67","v":{"$error":"#VALUE!"}}]
[null,null,{"$f":"LEFT('B2) ResearcherIDs'!C68,2)&LEFT('B2) ResearcherIDs'!D68,2)","v":""},{"$nulls":12},{"$f":"ResID[[#This Row],[Project Acronym]]","v":0},{"$f":"ResID[[#This Row],[Partner number ]]","v":0},null,null,{"$f":"$P$6","v":0},63,null,null,{"$f":"IF(OR(ISBLANK(V68), ISBLANK(W68)), \"ERROR: Date missing\", DATEDIF(V68,W68,\"M\")+1)","v":"ERROR: Date missing"},{"$f":"SUMIF(HR[Partner], U68, HR[Person months paid by grant])/X68","v":{"$error":"#VALUE!"}},{"$f":"SUMIF(HR[Partner], U68,HR[Person months (in kind/ other contribution)])/X68","v":{"$error":"#VALUE!"}}]
[null,null,{"$f":"LEFT('B2) ResearcherIDs'!C69,2)&LEFT('B2) ResearcherIDs'!D69,2)","v":""},{"$nulls":12},{"$f":"ResID[[#This Row],[Project Acronym]]","v":0},{"$f":"ResID[[#This Row],[Partner number ]]","v":0},null,null,0,64,null,null,"ERROR: Date missing",{"$f":"SUMIF(HR[Partner], U69, HR[Person months paid by grant])/X69","v":{"$error":"#VALUE!"}},{"$f":"SUMIF(HR[Partner], U69,HR[Person months (in kind/ other contribution)])/X69","v":{"$error":"#VALUE!"}}]
[null,null,{"$f":"LEFT('B2) ResearcherIDs'!C70,2)&LEFT('B2) ResearcherIDs'!D70,2)","v":""},{"$nulls":12},{"$f":"ResID[[#This Row],[Project Acronym]]","v":0},{"$f":"ResID[[#This Row],[Partner number ]]","v":0},null,null,0,65,null,null,"ERROR: Date missing",{"$f":"SUMIF(HR[Partner], U70, HR[Person months paid by grant])/X70","v":{"$error":"#VALUE!"}},{"$f":"SUMIF(HR[Partner], U70,HR[Person months (in kind/ other contribution)])/X70","v":{"$error":"#VALUE!"}}]
[null,null,{"$f":"LEFT('B2) ResearcherIDs'!C71,2)&LEFT('B2) ResearcherIDs'!D71,2)","v":""},{"$nulls":12},{"$f":"ResID[[#This Row],[Project Acronym]]","v":0},{"$f":"ResID[[#This Row],[Partner number ]]","v":0},null,null,0,66,null,null,"ERROR: Date missing",{"$f":"SUMIF(HR[Partner], U71, HR[Person months paid by grant])/X71","v":{"$error":"#VALUE!"}},{"$f":"SUMIF(HR[Partner], U71,HR[Person months (in kind/ other contribution)])/X71","v":{"$error":"#VALUE!"}}]
[null,null,{"$f":"LEFT('B2) ResearcherIDs'!C72,2)&LEFT('B2) ResearcherIDs'!D72,2)","v":""},{"$nulls":12},{"$f":"ResID[[#This Row],[Project Acronym]]","v":0},{"$f":"ResID[[#This Row],[Partner number ]]","v":0},null,null,0,67,null,null,"ERROR: Date missing",{"$f":"SUMIF(HR[Partner], U72, HR[Person months paid by grant])/X72","v":{"$error":"#VALUE!"}},{"$f":"SUMIF(HR[Partner], U72,HR[Person months (in kind/ other contribution)])/X72","v":{"$error":"#VALUE!"}}]
[null,null,{"$f":"LEFT('B2) ResearcherIDs'!C73,2)&LEFT('B2) ResearcherIDs'!D73,2)","v":""},{"$nulls":12},{"$f":"ResID[[#This Row],[Project Acronym]]","v":0},{"$f":"ResID[[#This Row],[Partner number ]]","v":0},null,null,0,68,null,null,"ERROR: Date missing",{"$f":"SUMIF(HR[Partner], U73, HR[Person months paid by grant])/X73","v":{"$error":"#VALUE!"}},{"$f":"SUMIF(HR[Partner], U73,HR[Person months (in kind/ other contribution)])/X73","v":{"$error":"#VALUE!"}}]
[null,null,{"$f":"LEFT('B2) ResearcherIDs'!C74,2)&LEFT('B2) ResearcherIDs'!D74,2)","v":""},{"$nulls":12},{"$f":"ResID[[#This Row],[Project Acronym]]","v":0},{"$f":"ResID[[#This Row],[Partner number ]]","v":0},null,null,0,69,null,null,"ERROR: Date missing",{"$f":"SUMIF(HR[Partner], U74, HR[Person months paid by grant])/X74","v":{"$error":"#VALUE!"}},{"$f":"SUMIF(HR[Partner], U74,HR[Person months (in kind/ other contribution)])/X74","v":{"$error":"#VALUE!"}}]
[null,null,{"$f":"LEFT('B2) ResearcherIDs'!C75,2)&LEFT('B2) ResearcherIDs'!D75,2)","v":""},{"$nulls":12},{"$f":"ResID[[#This Row],[Project Acronym]]","v":0},{"$f":"ResID[[#This Row],[Partner number ]]","v":0},null,null,0,70,null,null,"ERROR: Date missing",{"$f":"SUMIF(HR[Partner], U75, HR[Person months paid by grant])/X75","v":{"$error":"#VALUE!"}},{"$f":"SUMIF(HR[Partner], U75,HR[Person months (in kind/ other contribution)])/X75","v":{"$error":"#VALUE!"}}]
[null,null,{"$f":"LEFT('B2) ResearcherIDs'!C76,2)&LEFT('B2) ResearcherIDs'!D76,2)","v":""},{"$nulls":12},{"$f":"ResID[[#This Row],[Project Acronym]]","v":0},{"$f":"ResID[[#This Row],[Partner number ]]","v":0},null,null,0,71,null,null,"ERROR: Date missing",{"$f":"SUMIF(HR[Partner], U76, HR[Person months paid by grant])/X76","v":{"$error":"#VALUE!"}},{"$f":"SUMIF(HR[Partner], U76,HR[Person months (in kind/ other contribution)])/X76","v":{"$error":"#VALUE!"}}]
[null,null,{"$f":"LEFT('B2) ResearcherIDs'!C77,2)&LEFT('B2) ResearcherIDs'!D77,2)","v":""},{"$nulls":12},{"$f":"ResID[[#This Row],[Project Acronym]]","v":0},{"$f":"ResID[[#This Row],[Partner number ]]","v":0},null,null,0,72,null,null,"ERROR: Date missing",{"$f":"SUMIF(HR[Partner], U77, HR[Person months paid by grant])/X77","v":{"$error":"#VALUE!"}},{"$f":"SUMIF(HR[Partner], U77,HR[Person months (in kind/ other contribution)])/X77","v":{"$error":"#VALUE!"}}]
[null,null,{"$f":"LEFT('B2) ResearcherIDs'!C78,2)&LEFT('B2) ResearcherIDs'!D78,2)","v":""},{"$nulls":12},{"$f":"ResID[[#This Row],[Project Acronym]]","v":0},{"$f":"ResID[[#This Row],[Partner number ]]","v":0},null,null,0,73,null,null,"ERROR: Date missing",{"$f":"SUMIF(HR[Partner], U78, HR[Person months paid by grant])/X78","v":{"$error":"#VALUE!"}},{"$f":"SUMIF(HR[Partner], U78,HR[Person months (in kind/ other contribution)])/X78","v":{"$error":"#VALUE!"}}]
[null,null,{"$f":"LEFT('B2) ResearcherIDs'!C79,2)&LEFT('B2) ResearcherIDs'!D79,2)","v":""},{"$nulls":12},{"$f":"ResID[[#This Row],[Project Acronym]]","v":0},{"$f":"ResID[[#This Row],[Partner number ]]","v":0},null,null,0,74,null,null,"ERROR: Date missing",{"$f":"SUMIF(HR[Partner], U79, HR[Person months paid by grant])/X79","v":{"$error":"#VALUE!"}},{"$f":"SUMIF(HR[Partner], U79,HR[Person months (in kind/ other contribution)])/X79","v":{"$error":"#VALUE!"}}]
[null,null,{"$f":"LEFT('B2) ResearcherIDs'!C80,2)&LEFT('B2) ResearcherIDs'!D80,2)","v":""},{"$nulls":12},{"$f":"ResID[[#This Row],[Project Acronym]]","v":0},{"$f":"ResID[[#This Row],[Partner number ]]","v":0},null,null,0,75,null,null,"ERROR: Date missing",{"$f":"SUMIF(HR[Partner], U80, HR[Person months paid by grant])/X80","v":{"$error":"#VALUE!"}},{"$f":"SUMIF(HR[Partner], U80,HR[Person months (in kind/ other contribution)])/X80","v":{"$error":"#VALUE!"}}]
[null,null,{"$f":"LEFT('B2) ResearcherIDs'!C81,2)&LEFT('B2) ResearcherIDs'!D81,2)","v":""},{"$nulls":12},{"$f":"ResID[[#This Row],[Project Acronym]]","v":0},{"$f":"ResID[[#This Row],[Partner number ]]","v":0},null,null,0,76,null,null,"ERROR: Date missing",{"$f":"SUMIF(HR[Partner], U81, HR[Person months paid by grant])/X81","v":{"$error":"#VALUE!"}},{"$f":"SUMIF(HR[Partner], U81,HR[Person months (in kind/ other contribution)])/X81","v":{"$error":"#VALUE!"}}]
[null,null,{"$f":"LEFT('B2) ResearcherIDs'!C82,2)&LEFT('B2) ResearcherIDs'!D82,2)","v":""},{"$nulls":12},{"$f":"ResID[[#This Row],[Project Acronym]]","v":0},{"$f":"ResID[[#This Row],[Partner number ]]","v":0},null,null,0,77,null,null,"ERROR: Date missing",{"$f":"SUMIF(HR[Partner], U82, HR[Person months paid by grant])/X82","v":{"$error":"#VALUE!"}},{"$f":"SUMIF(HR[Partner], U82,HR[Person months (in kind/ other contribution)])/X82","v":{"$error":"#VALUE!"}}]
[null,null,{"$f":"LEFT('B2) ResearcherIDs'!C83,2)&LEFT('B2) ResearcherIDs'!D83,2)","v":""},{"$nulls":12},{"$f":"ResID[[#This Row],[Project Acronym]]","v":0},{"$f":"ResID[[#This Row],[Partner number ]]","v":0},null,null,0,78,null,null,"ERROR: Date missing",{"$f":"SUMIF(HR[Partner], U83, HR[Person months paid by grant])/X83","v":{"$error":"#VALUE!"}},{"$f":"SUMIF(HR[Partner], U83,HR[Person months (in kind/ other contribution)])/X83","v":{"$error":"#VALUE!"}}]
[null,null,{"$f":"LEFT('B2) ResearcherIDs'!C84,2)&LEFT('B2) ResearcherIDs'!D84,2)","v":""},{"$nulls":12},{"$f":"ResID[[#This Row],[Project Acronym]]","v":0},{"$f":"ResID[[#This Row],[Partner number ]]","v":0},null,null,0,79,null,null,"ERROR: Date missing",{"$f":"SUMIF(HR[Partner], U84, HR[Person months paid by grant])/X84","v":{"$error":"#VALUE!"}},{"$f":"SUMIF(HR[Partner], U84,HR[Person months (in kind/ other contribution)])/X84","v":{"$error":"#VALUE!"}}]
[null,null,{"$f":"LEFT('B2) ResearcherIDs'!C85,2)&LEFT('B2) ResearcherIDs'!D85,2)","v":""},{"$nulls":12},{"$f":"ResID[[#This Row],[Project Acronym]]","v":0},{"$f":"ResID[[#This Row],[Partner number ]]","v":0},null,null,0,80,null,null,"ERROR: Date missing",{"$f":"SUMIF(HR[Partner], U85, HR[Person months paid by grant])/X85","v":{"$error":"#VALUE!"}},{"$f":"SUMIF(HR[Partner], U85,HR[Person months (in kind/ other contribution)])/X85","v":{"$error":"#VALUE!"}}]
[null,null,{"$f":"LEFT('B2) ResearcherIDs'!C86,2)&LEFT('B2) ResearcherIDs'!D86,2)","v":""},{"$nulls":12},{"$f":"ResID[[#This Row],[Project Acronym]]","v":0},{"$f":"ResID[[#This Row],[Partner number ]]","v":0},null,null,0,81,null,null,"ERROR: Date missing",{"$f":"SUMIF(HR[Partner], U86, HR[Person months paid by grant])/X86","v":{"$error":"#VALUE!"}},{"$f":"SUMIF(HR[Partner], U86,HR[Person months (in kind/ other contribution)])/X86","v":{"$error":"#VALUE!"}}]
[null,null,{"$f":"LEFT('B2) ResearcherIDs'!C87,2)&LEFT('B2) ResearcherIDs'!D87,2)","v":""},{"$nulls":12},{"$f":"ResID[[#This Row],[Project Acronym]]","v":0},{"$f":"ResID[[#This Row],[Partner number ]]","v":0},null,null,0,82,null,null,"ERROR: Date missing",{"$f":"SUMIF(HR[Partner], U87, HR[Person months paid by grant])/X87","v":{"$error":"#VALUE!"}},{"$f":"SUMIF(HR[Partner], U87,HR[Person months (in kind/ other contribution)])/X87","v":{"$error":"#VALUE!"}}]
[null,null,{"$f":"LEFT('B2) ResearcherIDs'!C88,2)&LEFT('B2) ResearcherIDs'!D88,2)","v":""},{"$nulls":12},{"$f":"ResID[[#This Row],[Project Acronym]]","v":0},{"$f":"ResID[[#This Row],[Partner number ]]","v":0},null,null,0,83,null,null,"ERROR: Date missing",{"$f":"SUMIF(HR[Partner], U88, HR[Person months paid by grant])/X88","v":{"$error":"#VALUE!"}},{"$f":"SUMIF(HR[Partner], U88,HR[Person months (in kind/ other contribution)])/X88","v":{"$error":"#VALUE!"}}]
[null,null,{"$f":"LEFT('B2) ResearcherIDs'!C89,2)&LEFT('B2) ResearcherIDs'!D89,2)","v":""},{"$nulls":12},{"$f":"ResID[[#This Row],[Project Acronym]]","v":0},{"$f":"ResID[[#This Row],[Partner number ]]","v":0},null,null,0,84,null,null,"ERROR: Date missing",{"$f":"SUMIF(HR[Partner], U89, HR[Person months paid by grant])/X89","v":{"$error":"#VALUE!"}},{"$f":"SUMIF(HR[Partner], U89,HR[Person months (in kind/ other contribution)])/X89","v":{"$error":"#VALUE!"}}]
[null,null,{"$f":"LEFT('B2) ResearcherIDs'!C90,2)&LEFT('B2) ResearcherIDs'!D90,2)","v":""},{"$nulls":12},{"$f":"ResID[[#This Row],[Project Acronym]]","v":0},{"$f":"ResID[[#This Row],[Partner number ]]","v":0},null,null,0,85,null,null,"ERROR: Date missing",{"$f":"SUMIF(HR[Partner], U90, HR[Person months paid by grant])/X90","v":{"$error":"#VALUE!"}},{"$f":"SUMIF(HR[Partner], U90,HR[Person months (in kind/ other contribution)])/X90","v":{"$error":"#VALUE!"}}]
[null,null,{"$f":"LEFT('B2) ResearcherIDs'!C91,2)&LEFT('B2) ResearcherIDs'!D91,2)","v":""},{"$nulls":12},{"$f":"ResID[[#This Row],[Project Acronym]]","v":0},{"$f":"ResID[[#This Row],[Partner number ]]","v":0},null,null,0,86,null,null,"ERROR: Date missing",{"$f":"SUMIF(HR[Partner], U91, HR[Person months paid by grant])/X91","v":{"$error":"#VALUE!"}},{"$f":"SUMIF(HR[Partner], U91,HR[Person months (in kind/ other contribution)])/X91","v":{"$error":"#VALUE!"}}]
[null,null,{"$f":"LEFT('B2) ResearcherIDs'!C92,2)&LEFT('B2) ResearcherIDs'!D92,2)","v":""},{"$nulls":12},{"$f":"ResID[[#This Row],[Project Acronym]]","v":0},{"$f":"ResID[[#This Row],[Partner number ]]","v":0},null,null,0,87,null,null,"ERROR: Date missing",{"$f":"SUMIF(HR[Partner], U92, HR[Person months paid by grant])/X92","v":{"$error":"#VALUE!"}},{"$f":"SUMIF(HR[Partner], U92,HR[Person months (in kind/ other contribution)])/X92","v":{"$error":"#VALUE!"}}]
[null,null,{"$f":"LEFT('B2) ResearcherIDs'!C93,2)&LEFT('B2) ResearcherIDs'!D93,2)","v":""},{"$nulls":12},{"$f":"ResID[[#This Row],[Project Acronym]]","v":0},{"$f":"ResID[[#This Row],[Partner number ]]","v":0},null,null,0,88,null,null,"ERROR: Date missing",{"$f":"SUMIF(HR[Partner], U93, HR[Person months paid by grant])/X93","v":{"$error":"#VALUE!"}},{"$f":"SUMIF(HR[Partner], U93,HR[Person months (in kind/ other contribution)])/X93","v":{"$error":"#VALUE!"}}]
[null,null,{"$f":"LEFT('B2) ResearcherIDs'!C94,2)&LEFT('B2) ResearcherIDs'!D94,2)","v":""},{"$nulls":12},{"$f":"ResID[[#This Row],[Project Acronym]]","v":0},{"$f":"ResID[[#This Row],[Partner number ]]","v":0},null,null,0,89,null,null,"ERROR: Date missing",{"$f":"SUMIF(HR[Partner], U94, HR[Person months paid by grant])/X94","v":{"$error":"#VALUE!"}},{"$f":"SUMIF(HR[Partner], U94,HR[Person months (in kind/ other contribution)])/X94","v":{"$error":"#VALUE!"}}]
[null,null,{"$f":"LEFT('B2) ResearcherIDs'!C95,2)&LEFT('B2) ResearcherIDs'!D95,2)","v":""},{"$nulls":12},{"$f":"ResID[[#This Row],[Project Acronym]]","v":0},{"$f":"ResID[[#This Row],[Partner number ]]","v":0},null,null,0,90,null,null,"ERROR: Date missing",{"$f":"SUMIF(HR[Partner], U95, HR[Person months paid by grant])/X95","v":{"$error":"#VALUE!"}},{"$f":"SUMIF(HR[Partner], U95,HR[Person months (in kind/ other contribution)])/X95","v":{"$error":"#VALUE!"}}]
[null,null,{"$f":"LEFT('B2) ResearcherIDs'!C96,2)&LEFT('B2) ResearcherIDs'!D96,2)","v":""},{"$nulls":12},{"$f":"ResID[[#This Row],[Project Acronym]]","v":0},{"$f":"ResID[[#This Row],[Partner number ]]","v":0},null,null,0,91,null,null,"ERROR: Date missing",{"$f":"SUMIF(HR[Partner], U96, HR[Person months paid by grant])/X96","v":{"$error":"#VALUE!"}},{"$f":"SUMIF(HR[Partner], U96,HR[Person months (in kind/ other contribution)])/X96","v":{"$error":"#VALUE!"}}]
[null,null,{"$f":"LEFT('B2) ResearcherIDs'!C97,2)&LEFT('B2) ResearcherIDs'!D97,2)","v":""},{"$nulls":12},{"$f":"ResID[[#This Row],[Project Acronym]]","v":0},{"$f":"ResID[[#This Row],[Partner number ]]","v":0},null,null,0,92,null,null,"ERROR: Date missing",{"$f":"SUMIF(HR[Partner], U97, HR[Person months paid by grant])/X97","v":{"$error":"#VALUE!"}},{"$f":"SUMIF(HR[Partner], U97,HR[Person months (in kind/ other contribution)])/X97","v":{"$error":"#VALUE!"}}]
[null,null,{"$f":"LEFT('B2) ResearcherIDs'!C98,2)&LEFT('B2) ResearcherIDs'!D98,2)","v":""},{"$nulls":12},{"$f":"ResID[[#This Row],[Project Acronym]]","v":0},{"$f":"ResID[[#This Row],[Partner number ]]","v":0},null,null,0,93,null,null,"ERROR: Date missing",{"$f":"SUMIF(HR[Partner], U98, HR[Person months paid by grant])/X98","v":{"$error":"#VALUE!"}},{"$f":"SUMIF(HR[Partner], U98,HR[Person months (in kind/ other contribution)])/X98","v":{"$error":"#VALUE!"}}]
[null,null,{"$f":"LEFT('B2) ResearcherIDs'!C99,2)&LEFT('B2) ResearcherIDs'!D99,2)","v":""},{"$nulls":12},{"$f":"ResID[[#This Row],[Project Acronym]]","v":0},{"$f":"ResID[[#This Row],[Partner number ]]","v":0},null,null,0,94,null,null,"ERROR: Date missing",{"$f":"SUMIF(HR[Partner], U99, HR[Person months paid by grant])/X99","v":{"$error":"#VALUE!"}},{"$f":"SUMIF(HR[Partner], U99,HR[Person months (in kind/ other contribution)])/X99","v":{"$error":"#VALUE!"}}]
[null,null,{"$f":"LEFT('B2) ResearcherIDs'!C100,2)&LEFT('B2) ResearcherIDs'!D100,2)","v":""},{"$nulls":12},{"$f":"ResID[[#This Row],[Project Acronym]]","v":0},{"$f":"ResID[[#This Row],[Partner number ]]","v":0},null,null,0,95,null,null,"ERROR: Date missing",{"$f":"SUMIF(HR[Partner], U100, HR[Person months paid by grant])/X100","v":{"$error":"#VALUE!"}},{"$f":"SUMIF(HR[Partner], U100,HR[Person months (in kind/ other contribution)])/X100","v":{"$error":"#VALUE!"}}]
[null,null,{"$f":"LEFT('B2) ResearcherIDs'!C101,2)&LEFT('B2) ResearcherIDs'!D101,2)","v":""},{"$nulls":12},{"$f":"ResID[[#This Row],[Project Acronym]]","v":0},{"$f":"ResID[[#This Row],[Partner number ]]","v":0}]
[null,null,{"$f":"LEFT('B2) ResearcherIDs'!C102,2)&LEFT('B2) ResearcherIDs'!D102,2)","v":""},{"$nulls":12},{"$f":"ResID[[#This Row],[Project Acronym]]","v":0},{"$f":"ResID[[#This Row],[Partner number ]]","v":0}]
[null,null,{"$f":"LEFT('B2) ResearcherIDs'!C103,2)&LEFT('B2) ResearcherIDs'!D103,2)","v":""},{"$nulls":12},{"$f":"ResID[[#This Row],[Project Acronym]]","v":0},{"$f":"ResID[[#This Row],[Partner number ]]","v":0}]
[null,null,{"$f":"LEFT('B2) ResearcherIDs'!C104,2)&LEFT('B2) ResearcherIDs'!D104,2)","v":""},{"$nulls":12},{"$f":"ResID[[#This Row],[Project Acronym]]","v":0},{"$f":"ResID[[#This Row],[Partner number ]]","v":0}]
[null,null,{"$f":"LEFT('B2) ResearcherIDs'!C105,2)&LEFT('B2) ResearcherIDs'!D105,2)","v":""},{"$nulls":12},{"$f":"ResID[[#This Row],[Project Acronym]]","v":0},{"$f":"ResID[[#This Row],[Partner number ]]","v":0}]
[null,null,{"$f":"LEFT('B2) ResearcherIDs'!C106,2)&LEFT('B2) ResearcherIDs'!D106,2)","v":""},{"$nulls":12},{"$f":"ResID[[#This Row],[Project Acronym]]","v":0},{"$f":"ResID[[#This Row],[Partner number ]]","v":0}]
[null,null,{"$f":"LEFT('B2) ResearcherIDs'!C107,2)&LEFT('B2) ResearcherIDs'!D107,2)","v":""},{"$nulls":12},{"$f":"ResID[[#This Row],[Project Acronym]]","v":0},{"$f":"ResID[[#This Row],[Partner number ]]","v":0}]
[null,null,{"$f":"LEFT('B2) ResearcherIDs'!C108,2)&LEFT('B2) ResearcherIDs'!D108,2)","v":""},{"$nulls":12},{"$f":"ResID[[#This Row],[Project Acronym]]","v":0},{"$f":"ResID[[#This Row],[Partner number ]]","v":0}]
[null,null,{"$f":"LEFT('B2) ResearcherIDs'!C109,2)&LEFT('B2) ResearcherIDs'!D109,2)","v":""},{"$nulls":12},{"$f":"ResID[[#This Row],[Project Acronym]]","v":0},{"$f":"ResID[[#This Row],[Partner number ]]","v":0}]
[null,null,{"$f":"LEFT('B2) ResearcherIDs'!C110,2)&LEFT('B2) ResearcherIDs'!D110,2)","v":""},{"$nulls":12},{"$f":"ResID[[#This Row],[Project Acronym]]","v":0},{"$f":"ResID[[#This Row],[Partner number ]]","v":0}]
[null,null,{"$f":"LEFT('B2) ResearcherIDs'!C111,2)&LEFT('B2) ResearcherIDs'!D111,2)","v":""},{"$nulls":12},{"$f":"ResID[[#This Row],[Project Acronym]]","v":0},{"$f":"ResID[[#This Row],[Partner number ]]","v":0}]

{"sheet":"Confidential","index":2,"n_rows":54,"n_cols":2,"rows_kept":54,"cut":false,"hidden":true,"merged":[]}
[]
["Gender","Woman"]
[null,"Man"]
[null,"Transgender"]
[null,"Additional gender category/identity"]
[null,"prefer not to disclose"]
[null,"N/A"]
[]
["Position in the project","Entrepreneur"]
[null,"Leadership position"]
[null,"Leading Researcher (R4) "]
[null,"Established Researcher (R3)"]
[null,"Recognised Researcher (R2)"]
[null,"PhD student"]
[null,"Master's student"]
[null,"Bachelor student"]
[null,"Support and/or technical staff"]
[null,"Other*"]
[]
["Exisiting / hired","Newly hired "]
[null,"Existing staff"]
[]
["Yes/No","Yes"]
[null,"No"]
[]
["Professional future","Entrepreneur"]
[null,"Leadership position"]
[null,"Leading Researcher (R4) "]
[null,"Established Researcher (R3)"]
[null,"Recognised Researcher (R2)"]
[null,"PhD student"]
[null,"Master's student"]
[null,"Bachelor student"]
[null,"Support and/or technical staff"]
[null,"Between jobs"]
[null,"Without any news"]
[null,"Other*"]
[null,"N/A"]
[]
["Sector","same organisation: permanent position "]
[null,"same organisation: temporary position"]
[null,"new organisation: industry"]
[null,"new organisation: academia"]
[null,"new organisation: public sector"]
[null,"new organisation: education"]
[null,"other"]
[]
["Location","in same country*"]
[null,"abroad, European*"]
[null,"abroad, non-European*"]
[]
["Position","main contact person for this project"]
[null,"PI / Group Leader"]
[null,"Team member"]